[Event "Early-Titled-Tuesday-Blitz-May-14-2024"]
[Site "Chess.com"]
[Date "2024.05.14"]
[Round "6"]
[White "profedechess93"]
[Black "praveenb2002"]
[Result "0-1"]
[WhiteElo "2646"]
[BlackElo "2865"]
[TimeControl "180+1"]
[EndTime "9:09:05 PDT"]
[Termination "praveenb2002 won by checkmate"]

1. e4 {[%clk 0:03:00.9]} 1... c6 {[%clk 0:03:00]} 2. d4 {[%clk 0:03:00.3]} 2...
d5 {[%clk 0:03:00.7]} 3. Nc3 {[%clk 0:03:00.8]} 3... dxe4 {[%clk 0:02:56.2]} 4.
Nxe4 {[%clk 0:03:01.6]} 4... Nf6 {[%clk 0:02:56.4]} 5. Nxf6+ {[%clk 0:03:01.9]}
5... exf6 {[%clk 0:02:56.5]} 6. c3 {[%clk 0:03:02.4]} 6... Bd6 {[%clk
0:02:54.5]} 7. Bd3 {[%clk 0:03:03]} 7... O-O {[%clk 0:02:54.4]} 8. Qc2 {[%clk
0:03:03.6]} 8... Re8+ {[%clk 0:02:52.3]} 9. Ne2 {[%clk 0:03:04.1]} 9... h5
{[%clk 0:02:52.6]} 10. Be3 {[%clk 0:02:59.3]} 10... Nd7 {[%clk 0:02:49.7]} 11.
O-O-O {[%clk 0:02:59.2]} 11... Nf8 {[%clk 0:02:46.1]} 12. h3 {[%clk 0:02:59]}
12... Be6 {[%clk 0:02:43.1]} 13. g4 {[%clk 0:02:58]} 13... h4 {[%clk 0:02:37.6]}
14. Rhg1 {[%clk 0:02:58.2]} 14... Bd5 {[%clk 0:02:32.4]} 15. g5 {[%clk
0:02:56.7]} 15... Bh2 {[%clk 0:02:26.8]} 16. gxf6 {[%clk 0:02:56.6]} 16... Qxf6
{[%clk 0:02:13.3]} 17. Rge1 {[%clk 0:02:55.5]} 17... Bf3 {[%clk 0:01:58.9]} 18.
Kb1 {[%clk 0:02:43.6]} 18... b5 {[%clk 0:01:57.5]} 19. Qd2 {[%clk 0:02:30.3]}
19... Ne6 {[%clk 0:01:50.8]} 20. Rc1 {[%clk 0:02:23.9]} 20... a5 {[%clk
0:01:44.1]} 21. Ng1 {[%clk 0:02:20.6]} 21... Bd5 {[%clk 0:01:43.8]} 22. f4
{[%clk 0:02:07.5]} 22... Bxf4 {[%clk 0:01:37.8]} 23. Rf1 {[%clk 0:02:04.2]}
23... Bxe3 {[%clk 0:01:35.3]} 24. Qxe3 {[%clk 0:02:05.1]} 24... Qg5 {[%clk
0:01:32.9]} 25. Qf2 {[%clk 0:02:03.3]} 25... Nf8 {[%clk 0:01:28.7]} 26. Bc2
{[%clk 0:01:34.9]} 26... Re3 {[%clk 0:01:15.2]} 27. Ne2 {[%clk 0:01:23.3]} 27...
Bc4 {[%clk 0:01:06.3]} 28. Nf4 {[%clk 0:00:57.9]} 28... Rae8 {[%clk 0:00:58]}
29. Rg1 {[%clk 0:00:56]} 29... Rg3 {[%clk 0:00:56.9]} 30. b3 {[%clk 0:00:50.6]}
30... Be6 {[%clk 0:00:48.6]} 31. Ne2 {[%clk 0:00:50.7]} 31... Rxg1 {[%clk
0:00:41.7]} 32. Rxg1 {[%clk 0:00:51.6]} 32... Qh6 {[%clk 0:00:41.2]} 33. Nf4
{[%clk 0:00:48.2]} 33... Bd7 {[%clk 0:00:36.9]} 34. Qf3 {[%clk 0:00:43]} 34...
Ne6 {[%clk 0:00:32.1]} 35. Nd3 {[%clk 0:00:35]} 35... Ng5 {[%clk 0:00:27]} 36.
Qf4 {[%clk 0:00:34.9]} 36... f6 {[%clk 0:00:20.6]} 37. Nc5 {[%clk 0:00:32.9]}
37... Bxh3 {[%clk 0:00:19.9]} 38. Rh1 {[%clk 0:00:29.5]} 38... Qh5 {[%clk
0:00:14.2]} 39. Bd1 {[%clk 0:00:23.6]} 39... Qg6+ {[%clk 0:00:10.3]} 40. Bc2
{[%clk 0:00:23.5]} 40... Qh5 {[%clk 0:00:10.1]} 41. Bd1 {[%clk 0:00:23.5]} 41...
Qh6 {[%clk 0:00:10]} 42. Bc2 {[%clk 0:00:21.2]} 42... Kh8 {[%clk 0:00:08.4]} 43.
Qc7 {[%clk 0:00:19.3]} 43... Bg2 {[%clk 0:00:07.5]} 44. Rh2 {[%clk 0:00:18.5]}
44... h3 {[%clk 0:00:07.7]} 45. Qg3 {[%clk 0:00:17.7]} 45... Nf3 {[%clk
0:00:07]} 46. Rxg2 {[%clk 0:00:08.2]} 46... hxg2 {[%clk 0:00:06]} 47. Qxg2
{[%clk 0:00:09]} 47... Re1+ {[%clk 0:00:06]} 48. Kb2 {[%clk 0:00:08.2]} 48...
Qc1# {[%clk 0:00:06.6]} 0-1

[Event "Early-Titled-Tuesday-Blitz-May-14-2024"]
[Site "Chess.com"]
[Date "2024.05.14"]
[Round "6"]
[White "briesmas"]
[Black "azikom"]
[Result "1-0"]
[WhiteElo "2337"]
[BlackElo "2702"]
[TimeControl "180+1"]
[EndTime "9:09:05 PDT"]
[Termination "briesmas won on time"]

1. e4 {[%clk 0:02:59.7]} 1... c6 {[%clk 0:02:57]} 2. d4 {[%clk 0:02:59.4]} 2...
d5 {[%clk 0:02:57.9]} 3. exd5 {[%clk 0:02:59.9]} 3... cxd5 {[%clk 0:02:58]} 4.
Bd3 {[%clk 0:03:00.6]} 4... g6 {[%clk 0:02:56.8]} 5. c3 {[%clk 0:02:59.5]} 5...
Nc6 {[%clk 0:02:57.1]} 6. Bf4 {[%clk 0:02:59.3]} 6... Bf5 {[%clk 0:02:56.4]} 7.
Bxf5 {[%clk 0:02:58.9]} 7... gxf5 {[%clk 0:02:57.3]} 8. Nf3 {[%clk 0:02:59.5]}
8... e6 {[%clk 0:02:57.5]} 9. Nbd2 {[%clk 0:02:58.9]} 9... Bd6 {[%clk
0:02:57.6]} 10. Ne5 {[%clk 0:02:58]} 10... Nge7 {[%clk 0:02:54.8]} 11. O-O
{[%clk 0:02:50.4]} 11... Ng6 {[%clk 0:02:54.1]} 12. Nxc6 {[%clk 0:02:29.2]}
12... bxc6 {[%clk 0:02:53.8]} 13. Bxd6 {[%clk 0:02:29.1]} 13... Qxd6 {[%clk
0:02:53.7]} 14. Nf3 {[%clk 0:02:20.6]} 14... c5 {[%clk 0:02:49.6]} 15. dxc5
{[%clk 0:02:17.1]} 15... Qxc5 {[%clk 0:02:49.4]} 16. Qa4+ {[%clk 0:02:17]} 16...
Kf8 {[%clk 0:02:49.5]} 17. Rad1 {[%clk 0:01:56.3]} 17... Kg7 {[%clk 0:02:46.9]}
18. Rd2 {[%clk 0:01:56.4]} 18... Rab8 {[%clk 0:02:44.8]} 19. g3 {[%clk
0:01:53.7]} 19... Rhc8 {[%clk 0:02:43.9]} 20. Rfd1 {[%clk 0:01:52.1]} 20... Qb6
{[%clk 0:02:39.4]} 21. h4 {[%clk 0:01:45.3]} 21... Rc4 {[%clk 0:02:37.3]} 22.
Qc2 {[%clk 0:01:42.3]} 22... h6 {[%clk 0:02:28.9]} 23. h5 {[%clk 0:01:39.8]}
23... Nf8 {[%clk 0:02:29.1]} 24. Rd4 {[%clk 0:01:39.5]} 24... Rbc8 {[%clk
0:02:24.2]} 25. Rxc4 {[%clk 0:01:38.2]} 25... Rxc4 {[%clk 0:02:23.6]} 26. Rd4
{[%clk 0:01:37.7]} 26... Rc7 {[%clk 0:02:15.9]} 27. g4 {[%clk 0:01:27.3]} 27...
fxg4 {[%clk 0:02:15]} 28. Rxg4+ {[%clk 0:01:27.2]} 28... Kh8 {[%clk 0:02:15.2]}
29. Ne5 {[%clk 0:01:08.4]} 29... f5 {[%clk 0:02:12.7]} 30. Ng6+ {[%clk
0:00:53.7]} 30... Nxg6 {[%clk 0:02:06.6]} 31. Rxg6 {[%clk 0:00:54.6]} 31... Rg7
{[%clk 0:02:06.8]} 32. Qa4 {[%clk 0:00:23.4]} 32... Rxg6+ {[%clk 0:00:05.3]} 33.
hxg6 {[%clk 0:00:22.7]} 33... Qd8 {[%clk 0:00:05.9]} 34. Qd4+ {[%clk 0:00:14.5]}
34... Kg8 {[%clk 0:00:05.3]} 35. f4 {[%clk 0:00:14.8]} 35... Qe7 {[%clk
0:00:04.3]} 36. Qe5 {[%clk 0:00:12.7]} 36... a5 {[%clk 0:00:03.2]} 37. a3 {[%clk
0:00:12.5]} 37... Qd7 {[%clk 0:00:02.8]} 38. b4 {[%clk 0:00:11.3]} 38... axb4
{[%clk 0:00:02.6]} 39. axb4 {[%clk 0:00:11.4]} 39... h5 {[%clk 0:00:02]} 40. Qf6
{[%clk 0:00:09.5]} 40... h4 {[%clk 0:00:01.3]} 41. b5 {[%clk 0:00:09.1]} 1-0

[Event "Early-Titled-Tuesday-Blitz-May-14-2024"]
[Site "Chess.com"]
[Date "2024.05.14"]
[Round "6"]
[White "gmcorrales"]
[Black "Kunalm64"]
[Result "1-0"]
[WhiteElo "2933"]
[BlackElo "2609"]
[TimeControl "180+1"]
[EndTime "9:09:07 PDT"]
[Termination "gmcorrales won by checkmate"]

1. e4 {[%clk 0:03:00.9]} 1... c5 {[%clk 0:02:59.4]} 2. Nf3 {[%clk 0:03:00.5]}
2... d6 {[%clk 0:02:59.5]} 3. d4 {[%clk 0:03:01.1]} 3... Nf6 {[%clk 0:02:58.9]}
4. Nc3 {[%clk 0:03:01.2]} 4... cxd4 {[%clk 0:02:58.9]} 5. Nxd4 {[%clk
0:03:02.1]} 5... a6 {[%clk 0:02:58.8]} 6. h3 {[%clk 0:03:00.7]} 6... e5 {[%clk
0:02:56.6]} 7. Nde2 {[%clk 0:02:59.9]} 7... h5 {[%clk 0:02:55.6]} 8. g3 {[%clk
0:03:00.1]} 8... Be6 {[%clk 0:02:54.8]} 9. Bg2 {[%clk 0:03:00.4]} 9... Nbd7
{[%clk 0:02:53.2]} 10. a4 {[%clk 0:03:00.6]} 10... Rc8 {[%clk 0:02:52.5]} 11.
Be3 {[%clk 0:02:57.8]} 11... Be7 {[%clk 0:02:50.3]} 12. Qd2 {[%clk 0:02:57.6]}
12... Qc7 {[%clk 0:02:48.7]} 13. Rc1 {[%clk 0:02:55.1]} 13... Nb6 {[%clk
0:02:46.1]} 14. b3 {[%clk 0:02:54.6]} 14... Nbd7 {[%clk 0:02:35.2]} 15. f4
{[%clk 0:02:54.4]} 15... Nc5 {[%clk 0:02:26.7]} 16. f5 {[%clk 0:02:51.6]} 16...
Bd7 {[%clk 0:02:26.8]} 17. O-O {[%clk 0:02:29.9]} 17... Bc6 {[%clk 0:02:26]} 18.
Nd5 {[%clk 0:02:26]} 18... Bxd5 {[%clk 0:02:19]} 19. exd5 {[%clk 0:02:26.9]}
19... Nce4 {[%clk 0:02:18.3]} 20. Qd3 {[%clk 0:02:26.9]} 20... Nc3 {[%clk
0:02:04]} 21. Nxc3 {[%clk 0:01:06.5]} 21... Qxc3 {[%clk 0:02:03.3]} 22. Bd2
{[%clk 0:01:07.4]} 22... Qxd3 {[%clk 0:01:52.6]} 23. cxd3 {[%clk 0:01:08.3]}
23... Kd7 {[%clk 0:01:52.2]} 24. Rc4 {[%clk 0:01:07]} 24... b5 {[%clk
0:01:42.1]} 25. Rc6 {[%clk 0:01:05.9]} 25... Ra8 {[%clk 0:00:58.5]} 26. Rfc1
{[%clk 0:00:59.9]} 26... Rhc8 {[%clk 0:00:58.3]} 27. Bb4 {[%clk 0:00:59.2]}
27... Ne8 {[%clk 0:00:55.4]} 28. h4 {[%clk 0:00:52]} 28... a5 {[%clk 0:00:15.7]}
29. Bd2 {[%clk 0:00:49.1]} 29... b4 {[%clk 0:00:13.5]} 30. Be3 {[%clk
0:00:40.3]} 30... Rxc6 {[%clk 0:00:13.1]} 31. Rxc6 {[%clk 0:00:38.7]} 31... Nf6
{[%clk 0:00:11.7]} 32. Bb6 {[%clk 0:00:37.9]} 32... Ra6 {[%clk 0:00:10]} 33.
Rc7+ {[%clk 0:00:34.2]} 33... Ke8 {[%clk 0:00:10.2]} 34. Rb7 {[%clk 0:00:31.3]}
34... Nd7 {[%clk 0:00:09.9]} 35. Be3 {[%clk 0:00:31.4]} 35... Nc5 {[%clk
0:00:09.8]} 36. Rb8+ {[%clk 0:00:28]} 36... Kd7 {[%clk 0:00:09.5]} 37. d4 {[%clk
0:00:28.5]} 37... exd4 {[%clk 0:00:09.3]} 38. Bxd4 {[%clk 0:00:29.4]} 38... Bf6
{[%clk 0:00:08.6]} 39. Bxc5 {[%clk 0:00:29]} 39... dxc5 {[%clk 0:00:08.5]} 40.
Bf1 {[%clk 0:00:27.7]} 40... Ra7 {[%clk 0:00:07.3]} 41. Rb6 {[%clk 0:00:26.7]}
41... Kc7 {[%clk 0:00:06.4]} 42. Rc6+ {[%clk 0:00:26.3]} 42... Kd7 {[%clk
0:00:06.6]} 43. Bb5 {[%clk 0:00:25.9]} 43... Kd8 {[%clk 0:00:06.1]} 44. d6
{[%clk 0:00:21.5]} 44... Rd7 {[%clk 0:00:05.6]} 45. Ra6 {[%clk 0:00:19.3]} 45...
Be5 {[%clk 0:00:03.1]} 46. Ra8# {[%clk 0:00:18.2]} 1-0

[Event "Early-Titled-Tuesday-Blitz-May-14-2024"]
[Site "Chess.com"]
[Date "2024.05.14"]
[Round "6"]
[White "Antosha_Chekhonte"]
[Black "TigranMukhutdinov"]
[Result "1-0"]
[WhiteElo "2588"]
[BlackElo "2707"]
[TimeControl "180+1"]
[EndTime "9:09:07 PDT"]
[Termination "Antosha_Chekhonte won by resignation"]

1. e4 {[%clk 0:03:00.9]} 1... c5 {[%clk 0:02:49.7]} 2. Nf3 {[%clk 0:03:00.6]}
2... Nc6 {[%clk 0:02:50]} 3. Bb5 {[%clk 0:03:00]} 3... g6 {[%clk 0:02:50.1]} 4.
O-O {[%clk 0:02:59.6]} 4... Bg7 {[%clk 0:02:50.4]} 5. Re1 {[%clk 0:03:00.3]}
5... Nf6 {[%clk 0:02:50.7]} 6. e5 {[%clk 0:03:00.6]} 6... Nd5 {[%clk 0:02:51]}
7. Nc3 {[%clk 0:03:00.8]} 7... Nc7 {[%clk 0:02:51.6]} 8. Bxc6 {[%clk 0:03:01.3]}
8... dxc6 {[%clk 0:02:52.5]} 9. d3 {[%clk 0:03:01]} 9... O-O {[%clk 0:02:52.9]}
10. h3 {[%clk 0:03:01.2]} 10... Ne6 {[%clk 0:02:53.2]} 11. Be3 {[%clk
0:02:59.7]} 11... b6 {[%clk 0:02:53.7]} 12. a4 {[%clk 0:02:58.6]} 12... a5
{[%clk 0:02:54.2]} 13. Ne4 {[%clk 0:02:55]} 13... Ba6 {[%clk 0:02:46.5]} 14. b3
{[%clk 0:02:42.4]} 14... Nd4 {[%clk 0:02:42.2]} 15. Bf4 {[%clk 0:02:41.1]} 15...
Qd5 {[%clk 0:02:38]} 16. Ned2 {[%clk 0:02:09]} 16... Rad8 {[%clk 0:02:34]} 17.
Nxd4 {[%clk 0:01:59]} 17... cxd4 {[%clk 0:02:33.4]} 18. Nc4 {[%clk 0:01:52.9]}
18... Qc5 {[%clk 0:02:19.4]} 19. Qd2 {[%clk 0:01:47.7]} 19... Rfe8 {[%clk
0:02:14.2]} 20. e6 {[%clk 0:01:42.2]} 20... Bxc4 {[%clk 0:02:09.4]} 21. bxc4
{[%clk 0:01:37.7]} 21... f6 {[%clk 0:02:06.2]} 22. Rab1 {[%clk 0:01:34.7]} 22...
Rc8 {[%clk 0:02:01.1]} 23. Rb3 {[%clk 0:01:34.1]} 23... Ra8 {[%clk 0:01:40.8]}
24. Reb1 {[%clk 0:01:32.2]} 24... Ra6 {[%clk 0:01:41.2]} 25. Bc7 {[%clk
0:01:30.6]} 25... Qf5 {[%clk 0:01:37.7]} 26. Qe2 {[%clk 0:01:22.5]} 26... Rc8
{[%clk 0:01:20.2]} 27. Bxb6 {[%clk 0:01:08.6]} 27... c5 {[%clk 0:01:20.5]} 28.
Rb5 {[%clk 0:01:06.8]} 28... Rc6 {[%clk 0:01:20.5]} 29. Bxa5 {[%clk 0:00:57.1]}
29... Rxe6 {[%clk 0:01:20.2]} 30. Qg4 {[%clk 0:00:47.1]} 30... Qxg4 {[%clk
0:01:15.5]} 31. hxg4 {[%clk 0:00:47.1]} 31... Re2 {[%clk 0:01:14.7]} 32. R1b2
{[%clk 0:00:36.1]} 32... Re5 {[%clk 0:01:00.9]} 33. Ra2 {[%clk 0:00:31.8]} 33...
Bh6 {[%clk 0:01:00.3]} 34. Bb6 {[%clk 0:00:30.1]} 34... Re1+ {[%clk 0:00:54.3]}
35. Kh2 {[%clk 0:00:25.1]} 35... Re2 {[%clk 0:00:50.2]} 36. Kg3 {[%clk
0:00:22.9]} 36... e5 {[%clk 0:00:49.8]} 37. Kf3 {[%clk 0:00:20.1]} 37... Re1
{[%clk 0:00:45.1]} 38. Bxc5 {[%clk 0:00:20.4]} 38... f5 {[%clk 0:00:45.6]} 39.
gxf5 {[%clk 0:00:16.1]} 39... gxf5 {[%clk 0:00:46.5]} 40. Rb6 {[%clk 0:00:16.3]}
40... e4+ {[%clk 0:00:46.9]} 41. Kg3 {[%clk 0:00:16.2]} 41... f4+ {[%clk
0:00:46]} 42. Kg4 {[%clk 0:00:15.9]} 42... Rxb6 {[%clk 0:00:46.6]} 43. Bxb6
{[%clk 0:00:15.9]} 43... e3 {[%clk 0:00:47.5]} 44. Bxd4 {[%clk 0:00:16]} 44...
e2 {[%clk 0:00:47.7]} 45. Bc3 {[%clk 0:00:15.6]} 45... Rg1 {[%clk 0:00:46.2]}
46. Kf3 {[%clk 0:00:15.3]} 46... Bg7 {[%clk 0:00:39.7]} 47. Bd2 {[%clk
0:00:15.4]} 47... e1=Q {[%clk 0:00:38.2]} 48. Bxe1 {[%clk 0:00:15.6]} 48... Rxe1
{[%clk 0:00:39.1]} 49. a5 {[%clk 0:00:16.3]} 49... Bd4 {[%clk 0:00:39.3]} 50. a6
{[%clk 0:00:16]} 50... Ba7 {[%clk 0:00:39.8]} 51. Rb2 {[%clk 0:00:16.5]} 51...
Rf1 {[%clk 0:00:40.3]} 52. Kxf4 {[%clk 0:00:16]} 52... Rxf2+ {[%clk 0:00:40.3]}
53. Ke5 {[%clk 0:00:16.3]} 53... Rxg2 {[%clk 0:00:40.5]} 54. Rb7 {[%clk
0:00:16.1]} 54... Rg7 {[%clk 0:00:40.8]} 55. d4 {[%clk 0:00:13.9]} 55... h5
{[%clk 0:00:41.1]} 56. c5 {[%clk 0:00:14.4]} 56... h4 {[%clk 0:00:41.5]} 57.
Rxg7+ {[%clk 0:00:10.8]} 57... Kxg7 {[%clk 0:00:41.7]} 58. Kf4 {[%clk
0:00:11.7]} 58... h3 {[%clk 0:00:40.6]} 59. Kg3 {[%clk 0:00:11.8]} 59... Kf6
{[%clk 0:00:41.4]} 60. c4 {[%clk 0:00:10.8]} 60... Kf5 {[%clk 0:00:41.8]} 61.
Kxh3 {[%clk 0:00:10.4]} 61... Ke4 {[%clk 0:00:42.2]} 62. c6 {[%clk 0:00:10.9]}
1-0

[Event "Early-Titled-Tuesday-Blitz-May-14-2024"]
[Site "Chess.com"]
[Date "2024.05.14"]
[Round "6"]
[White "BilodeauA"]
[Black "rpragchess"]
[Result "0-1"]
[WhiteElo "2906"]
[BlackElo "3106"]
[TimeControl "180+1"]
[EndTime "9:09:11 PDT"]
[Termination "rpragchess won by resignation"]

1. e4 {[%clk 0:03:00.9]} 1... e5 {[%clk 0:02:56.1]} 2. Nf3 {[%clk 0:03:01]} 2...
Nc6 {[%clk 0:02:55.8]} 3. Bc4 {[%clk 0:03:01.3]} 3... Bc5 {[%clk 0:02:54.7]} 4.
d3 {[%clk 0:03:01.5]} 4... d6 {[%clk 0:02:54]} 5. a3 {[%clk 0:02:49.6]} 5... h6
{[%clk 0:02:42.6]} 6. O-O {[%clk 0:02:48.6]} 6... Nf6 {[%clk 0:02:39.5]} 7. Be3
{[%clk 0:02:46.8]} 7... Bb6 {[%clk 0:02:36.9]} 8. h3 {[%clk 0:02:38.1]} 8... g5
{[%clk 0:02:20.6]} 9. Nh2 {[%clk 0:02:29.5]} 9... Rg8 {[%clk 0:01:58.3]} 10.
Bxb6 {[%clk 0:02:09.1]} 10... axb6 {[%clk 0:01:57.9]} 11. Nc3 {[%clk 0:02:09.9]}
11... g4 {[%clk 0:01:45.5]} 12. h4 {[%clk 0:02:00.9]} 12... Be6 {[%clk
0:01:45.2]} 13. Bb5 {[%clk 0:01:27.9]} 13... Nd7 {[%clk 0:01:27.7]} 14. Bxc6
{[%clk 0:01:27.4]} 14... bxc6 {[%clk 0:01:28.6]} 15. g3 {[%clk 0:01:27.8]} 15...
Qf6 {[%clk 0:01:23.8]} 16. Re1 {[%clk 0:01:23.7]} 16... d5 {[%clk 0:01:21.2]}
17. Qe2 {[%clk 0:01:15.7]} 17... d4 {[%clk 0:01:10.5]} 18. Nb1 {[%clk
0:01:15.6]} 18... h5 {[%clk 0:01:06.8]} 19. Nd2 {[%clk 0:01:09.8]} 19... Nf8
{[%clk 0:01:07]} 20. Rac1 {[%clk 0:00:51.5]} 20... Bd7 {[%clk 0:00:49]} 21. Kh1
{[%clk 0:00:48.2]} 21... Qg7 {[%clk 0:00:45.2]} 22. Rg1 {[%clk 0:00:44.4]} 22...
Qh6 {[%clk 0:00:35]} 23. Rcf1 {[%clk 0:00:41.4]} 23... O-O-O {[%clk 0:00:22.1]}
24. f3 {[%clk 0:00:39]} 24... gxf3 {[%clk 0:00:21.3]} 25. Rxf3 {[%clk
0:00:39.7]} 25... Be6 {[%clk 0:00:20]} 26. Rgf1 {[%clk 0:00:38.8]} 26... Nd7
{[%clk 0:00:19.2]} 27. R1f2 {[%clk 0:00:36.3]} 27... Rg6 {[%clk 0:00:19.3]} 28.
Ndf1 {[%clk 0:00:34.9]} 28... Rdg8 {[%clk 0:00:19.5]} 29. Qd2 {[%clk 0:00:32.4]}
29... Qf8 {[%clk 0:00:17]} 30. c4 {[%clk 0:00:27.5]} 30... dxc3 {[%clk
0:00:15.3]} 31. Qxc3 {[%clk 0:00:27.9]} 31... Qd6 {[%clk 0:00:15]} 32. b4 {[%clk
0:00:26.2]} 32... Kb7 {[%clk 0:00:13]} 33. Kg2 {[%clk 0:00:26.5]} 33... c5
{[%clk 0:00:13.3]} 34. Ne3 {[%clk 0:00:26.3]} 34... Ra8 {[%clk 0:00:09]} 35.
Nhf1 {[%clk 0:00:26.2]} 35... Qd4 {[%clk 0:00:07.5]} 36. Qd2 {[%clk 0:00:13]}
36... cxb4 {[%clk 0:00:04.2]} 37. axb4 {[%clk 0:00:13.6]} 37... Ra2 {[%clk
0:00:04.5]} 38. Nc2 {[%clk 0:00:12.5]} 38... Qd6 {[%clk 0:00:04.3]} 39. Nfe3
{[%clk 0:00:12.9]} 39... f6 {[%clk 0:00:03.9]} 40. Qc3 {[%clk 0:00:13.2]} 40...
Bg4 {[%clk 0:00:04]} 41. Nc4 {[%clk 0:00:09.7]} 41... Bxf3+ {[%clk 0:00:03.7]}
42. Rxf3 {[%clk 0:00:10.6]} 42... Qc6 {[%clk 0:00:03.8]} 43. Qb3 {[%clk
0:00:09.8]} 43... Qa4 {[%clk 0:00:03.4]} 44. Qc3 {[%clk 0:00:09.6]} 44... Qxc2+
{[%clk 0:00:03.6]} 0-1

[Event "Early-Titled-Tuesday-Blitz-May-14-2024"]
[Site "Chess.com"]
[Date "2024.05.14"]
[Round "6"]
[White "falzehope0"]
[Black "petearrpan"]
[Result "0-1"]
[WhiteElo "2364"]
[BlackElo "2290"]
[TimeControl "180+1"]
[EndTime "9:09:13 PDT"]
[Termination "petearrpan won on time"]

1. d4 {[%clk 0:03:00.9]} 1... d5 {[%clk 0:03:00]} 2. e3 {[%clk 0:03:01.8]} 2...
e6 {[%clk 0:02:59.1]} 3. Bd3 {[%clk 0:03:02]} 3... Nf6 {[%clk 0:02:59.7]} 4. f4
{[%clk 0:03:02.3]} 4... c6 {[%clk 0:03:00.2]} 5. Nf3 {[%clk 0:03:02.8]} 5...
Nbd7 {[%clk 0:03:00.7]} 6. O-O {[%clk 0:03:03.3]} 6... Be7 {[%clk 0:03:01.3]} 7.
Nbd2 {[%clk 0:03:01.9]} 7... O-O {[%clk 0:03:01.6]} 8. Ne5 {[%clk 0:03:02.4]}
8... Nxe5 {[%clk 0:02:57.4]} 9. fxe5 {[%clk 0:03:02]} 9... Nd7 {[%clk
0:02:54.3]} 10. Qh5 {[%clk 0:02:58.5]} 10... g6 {[%clk 0:02:50]} 11. Qh3 {[%clk
0:02:54.2]} 11... f5 {[%clk 0:02:36.9]} 12. Nf3 {[%clk 0:02:48.3]} 12... Rf7
{[%clk 0:02:26.4]} 13. g4 {[%clk 0:02:44.8]} 13... Qf8 {[%clk 0:01:31.1]} 14.
gxf5 {[%clk 0:02:43.8]} 14... gxf5 {[%clk 0:01:29.5]} 15. Kh1 {[%clk 0:02:42.8]}
15... Kh8 {[%clk 0:01:29.9]} 16. Bd2 {[%clk 0:02:40.8]} 16... c5 {[%clk
0:01:28.1]} 17. c3 {[%clk 0:02:39.8]} 17... b6 {[%clk 0:01:17.3]} 18. Rg1 {[%clk
0:02:38.8]} 18... a5 {[%clk 0:01:10]} 19. Rg6 {[%clk 0:02:32.5]} 19... Nb8
{[%clk 0:00:53.3]} 20. Rag1 {[%clk 0:02:30]} 20... Nc6 {[%clk 0:00:51.2]} 21.
Rg8+ {[%clk 0:02:24.5]} 21... Qxg8 {[%clk 0:00:51.3]} 22. Rxg8+ {[%clk
0:02:24.8]} 22... Kxg8 {[%clk 0:00:52.2]} 23. Qh5 {[%clk 0:02:21.3]} 23... Bd7
{[%clk 0:00:48.3]} 24. Ng5 {[%clk 0:02:17.8]} 24... Bxg5 {[%clk 0:00:47.6]} 25.
Qxg5+ {[%clk 0:02:17.7]} 25... Rg7 {[%clk 0:00:48.2]} 26. Qh5 {[%clk 0:02:14]}
26... Be8 {[%clk 0:00:44.5]} 27. Qh6 {[%clk 0:02:08.5]} 27... Rg6 {[%clk
0:00:43.9]} 28. Qh4 {[%clk 0:02:07.4]} 28... Ra7 {[%clk 0:00:43.7]} 29. Be1
{[%clk 0:02:03.4]} 29... Rag7 {[%clk 0:00:44.1]} 30. Bg3 {[%clk 0:02:03.5]}
30... Ne7 {[%clk 0:00:37.8]} 31. Be2 {[%clk 0:02:01.7]} 31... Kf8 {[%clk
0:00:29.6]} 32. Bf3 {[%clk 0:01:55.5]} 32... Bf7 {[%clk 0:00:29.2]} 33. Qf4
{[%clk 0:01:51.7]} 33... Ke8 {[%clk 0:00:28.2]} 34. Bh5 {[%clk 0:01:50.3]} 34...
Rg5 {[%clk 0:00:25.5]} 35. Bf3 {[%clk 0:01:47.4]} 35... h6 {[%clk 0:00:20.2]}
36. b3 {[%clk 0:01:43.5]} 36... Ng6 {[%clk 0:00:20.7]} 37. Qxg5 {[%clk
0:01:38.2]} 37... hxg5 {[%clk 0:00:21.6]} 38. Bg2 {[%clk 0:01:38.2]} 38... f4
{[%clk 0:00:21.4]} 39. exf4 {[%clk 0:01:38.2]} 39... gxf4 {[%clk 0:00:22.3]} 40.
Bf2 {[%clk 0:01:38.4]} 40... Ne7 {[%clk 0:00:22.4]} 41. Bf3 {[%clk 0:01:38.5]}
41... Nf5 {[%clk 0:00:22.5]} 42. dxc5 {[%clk 0:01:37.4]} 42... bxc5 {[%clk
0:00:22.6]} 43. Bxc5 {[%clk 0:01:37.6]} 43... Bg6 {[%clk 0:00:22.3]} 44. b4
{[%clk 0:01:36.8]} 44... axb4 {[%clk 0:00:22.4]} 45. cxb4 {[%clk 0:01:36.6]}
45... d4 {[%clk 0:00:22.8]} 46. Bc6+ {[%clk 0:01:35.8]} 46... Kd8 {[%clk
0:00:22.9]} 47. b5 {[%clk 0:01:36]} 47... Kc8 {[%clk 0:00:23]} 48. b6 {[%clk
0:01:36.2]} 48... d3 {[%clk 0:00:23.5]} 49. b7+ {[%clk 0:01:32.7]} 49... Rxb7
{[%clk 0:00:24.1]} 50. Bxb7+ {[%clk 0:01:32.5]} 50... Kxb7 {[%clk 0:00:25]} 51.
Bb4 {[%clk 0:01:32.2]} 51... Nd4 {[%clk 0:00:24.3]} 52. Kg1 {[%clk 0:01:31.5]}
52... Nc6 {[%clk 0:00:24.9]} 53. Bd2 {[%clk 0:01:31]} 53... Nxe5 {[%clk
0:00:25.6]} 54. Bxf4 {[%clk 0:01:30.3]} 54... Nc4 {[%clk 0:00:26.3]} 55. Kf1
{[%clk 0:01:30.3]} 55... d2 {[%clk 0:00:27]} 56. Bxd2 {[%clk 0:01:27.8]} 56...
Nxd2+ {[%clk 0:00:27.1]} 57. Ke2 {[%clk 0:01:28.1]} 57... Nc4 {[%clk 0:00:28]}
58. Kf3 {[%clk 0:01:27.7]} 58... e5 {[%clk 0:00:28.3]} 59. Kg4 {[%clk
0:01:27.8]} 59... Bd3 {[%clk 0:00:28.7]} 60. a3 {[%clk 0:01:27.5]} 60... e4
{[%clk 0:00:29.6]} 0-1